bitfinex/quotes_SOLUSD_20260311
["timestamp","ask_amount","ask_price","bid_price","bid_amount"]
[1773219235206,1.49263324,85.299,85.273,1.38853037]
[1773219236407,1.49263324,85.299,85.274,11.72690386]
[1773219236593,1.49263324,85.297,85.274,11.72690386]
[1773219239108,1.49263324,85.297,85.27,1.38853037]
[1773219239401,11.72305578,85.302,85.27,1.38853037]
[1773219239402,1.49263324,85.303,85.271,1.38853037]
[1773219239603,11.72242647,85.307,85.271,1.38853037]
[1773219239604,1.49263324,85.306,85.271,1.38853037]
[1773219239784,3.16771207,85.3,85.271,1.38853037]
[1773219239989,1.49263324,85.299,85.271,1.38853037]
[1773219241804,3.16771207,85.3,85.27,3.16771207]
[1773219241805,1.49263324,85.306,85.273,1.38853037]
[1773219242391,1.49263324,85.328,85.291,1.38853037]
[1773219242613,1.49263324,85.319,85.291,1.38853037]
[1773219243812,1.49263324,85.319,85.292,11.72442902]
[1773219244218,1.49263324,85.319,85.293,1.38853037]
[1773219245090,11.71996386,85.325,85.301,1.38853037]
[1773219245692,1.49263324,85.324,85.301,1.38853037]
[1773219247323,1.49263324,85.322,85.301,1.38853037]
[1773219248820,1.49263324,85.32,85.301,1.38853037]
[1773219249514,1.49263324,85.32,85.295,1.38853037]
[1773219249717,1.49263324,85.32,85.255,1.17295173]
[1773219249718,1.49263324,85.319,85.281,1.38853037]
[1773219249915,1.49263324,85.309,85.282,1.38853037]
[1773219250927,1.49263324,85.307,85.284,1.38853037]
[1773219254305,1.49263324,85.307,85.285,13.1139217]
[1773219254716,1.49263324,85.307,85.286,1.38853037]
[1773219255223,46.87029648,85.342,85.285,11.72539133]
[1773219255224,1.49263324,85.315,85.291,1.38853037]
[1773219256405,1.49263324,85.315,85.293,1.38853037]
[1773219257221,1.49263324,85.313,85.288,1.38853037]
[1773219257910,1.49263324,85.309,85.281,1.38853037]
[1773219258811,1.49263324,85.307,85.281,1.38853037]
[1773219259016,1.49263324,85.307,85.283,1.38853037]
[1773219263402,1.49263324,85.307,85.285,1.4403227]
[1773219264521,1.34892579,85.305,85.279,1.4403227]
[1773219264719,1.34892579,85.305,85.281,1.4403227]
[1773219267223,1.34892579,85.305,85.283,1.4403227]
[1773219269426,1.34892579,85.305,85.285,1.4403227]
[1773219269807,1.34892579,85.305,85.284,11.72552882]
[1773219270210,1.34892579,85.305,85.284,13.16585152]
[1773219270413,1.34892579,85.305,85.286,11.72525385]
[1773219270726,1.34892579,85.305,85.287,1.4403227]
[1773219273235,1.34892579,85.305,85.288,11.72497889]
[1773219273541,1.34892579,85.305,85.289,1.4403227]
[1773219280040,1.34892579,85.305,85.284,11.7254554]
[1773219280239,1.34892579,85.305,85.285,1.40793882]
[1773219282749,1.34892579,85.305,85.287,1.40793882]
[1773219284336,1.42975982,85.318,85.291,1.40793882]
[1773219289160,1.42975982,85.316,85.293,1.40793882]
[1773219289753,29.29896519,85.328,85.292,11.72442902]
[1773219289754,1.34642334,85.33,85.301,1.33190004]
[1773219290852,3.37996897,85.33,85.301,1.33190004]
[1773219291040,1.34642334,85.329,85.301,1.33190004]
[1773219293263,11.71948246,85.328,85.301,1.33190004]
[1773219293456,1.34642334,85.327,85.301,1.33190004]
[1773219294464,1.34642334,85.327,85.303,1.33190004]
[1773219295354,1.34642334,85.327,85.305,1.33190004]
[1773219296467,3.57996897,85.34,85.304,11.7227797]
[1773219296468,0.2,85.34,85.321,1.33190004]
[1773219296641,0.2,85.34,85.331,1.33190004]
[1773219296848,11.71570799,85.356,85.33,3.37996897]
[1773219296849,1.34642334,85.363,85.332,1.33190004]
[1773219297158,1.34642334,85.363,85.341,1.33190004]
[1773219297361,1.34642334,85.348,85.321,1.33190004]
[1773219297754,1.34642334,85.348,85.331,1.33190004]
[1773219297947,1.34642334,85.353,85.331,1.33190004]
[1773219299963,1.34642334,85.353,85.333,1.33190004]
[1773219300345,2.24,85.366,85.341,1.33190004]
[1773219300346,1.34642334,85.36,85.341,1.33190004]
[1773219300550,1.34642334,85.365,85.341,1.33190004]
[1773219300749,1.34642334,85.364,85.341,1.33190004]
[1773219300958,11.71440285,85.365,85.332,11.7189331]
[1773219300959,1.34642334,85.359,85.333,1.33190004]
[1773219303160,1.34642334,85.359,85.335,1.33190004]
[1773219303379,1.34642334,85.364,85.341,1.33190004]
[1773219303557,1.34642334,85.368,85.341,1.33190004]
[1773219304564,1.34642334,85.368,85.343,1.33190004]
[1773219305555,1.34642334,85.368,85.344,11.71728533]
[1773219305758,18.01090481,85.38,85.361,1.33190004]
[1773219305959,1.34642334,85.379,85.361,1.33190004]
[1773219306269,1.34642334,85.379,85.344,41.01049867]
[1773219306270,1.34642334,85.379,85.35,3.37996897]
[1773219306566,1.34642334,85.379,85.345,1.33190004]
[1773219307067,1.34642334,85.379,85.35,3.37996897]
[1773219307970,1.34642334,85.377,85.351,11.71632435]
[1773219308268,1.34642334,85.369,85.332,1.33190004]
[1773219308662,1.34642334,85.369,85.341,1.33190004]
[1773219309766,1.34642334,85.369,85.343,1.33190004]
[1773219313056,11.71399119,85.368,85.344,11.71728533]
[1773219313267,1.34642334,85.367,85.344,13.04918537]
[1773219314173,1.34642334,85.367,85.345,1.33190004]
[1773219315176,1.34642334,85.367,85.347,1.33190004]
[1773219317378,1.34642334,85.367,85.348,11.71673618]
[1773219317692,1.34642334,85.373,85.351,1.33190004]
[1773219318979,16.66448147,85.38,85.361,1.33190004]
[1773219319374,16.66448147,85.38,85.363,1.33190004]
[1773219319572,1.39492062,85.379,85.325,3.69383402]
[1773219319878,1.39492062,85.379,85.35,3.37996897]
[1773219320682,1.39492062,85.379,85.36,3.37996897]
[1773219321179,0.2,85.38,85.36,3.37996897]
[1773219321479,0.2,85.38,85.362,0.86133078]
[1773219323575,0.2,85.38,85.363,11.71467731]
[1773219325585,1.39492062,85.396,85.364,0.86012075]
[1773219327579,1.33172481,85.394,85.363,11.71467731]
[1773219327786,11.71028748,85.395,85.363,11.71467731]
[1773219327787,1.33172481,85.389,85.363,11.71467731]
[1773219328764,13.04289207,85.389,85.363,11.71467731]
[1773219328965,1.33172481,85.388,85.363,11.71467731]
[1773219335774,1.33172481,85.386,85.351,0.65866843]
[1773219336888,1.33172481,85.384,85.353,0.65854888]
[1773219338781,11.71193328,85.383,85.352,12.37434524]
[1773219338985,1.33342228,85.382,85.353,0.65815816]
[1773219340090,1.33342228,85.382,85.355,0.65804576]
[1773219340692,1.33342228,85.386,85.361,0.65793227]
[1773219342093,1.33342228,85.386,85.363,0.65781944]
[1773219344398,1.33342228,85.386,85.364,12.37211766]
[1773219344997,1.33342228,85.386,85.365,0.65749399]
[1773219347499,1.33342228,85.386,85.366,11.71426563]
[1773219348600,1.33342228,85.386,85.366,12.37139765]
[1773219350705,11.71004404,85.397,85.362,0.65684472]
[1773219350879,1.329279,85.396,85.362,0.65684472]
[1773219352002,0.2,85.4,85.371,0.65668736]
[1773219352412,1.329279,85.398,85.371,0.65668736]
[1773219352717,1.329279,85.398,85.373,0.65668736]
[1773219353118,2.24,85.408,85.38,3.37329543]
[1773219353321,0.2,85.41,85.391,0.65658637]
[1773219354105,1.329279,85.409,85.391,0.65658637]
[1773219355218,0.2,85.41,85.391,0.65658637]
[1773219355403,1.329279,85.409,85.392,11.71069889]
[1773219356017,1.329279,85.409,85.392,12.36697028]
[1773219356216,1.329279,85.409,85.393,0.65627139]
[1773219356407,1.329279,85.409,85.392,11.71069889]
[1773219356717,1.329279,85.409,85.386,11.71148588]
[1773219357303,1.329279,85.409,85.39,3.37329543]
[1773219357622,1.329279,85.409,85.387,0.65619821]
[1773219357924,1.329279,85.409,85.39,3.37329543]
[1773219358123,1.329279,85.409,85.391,0.65609974]
[1773219358500,0.2,85.41,85.391,0.65609974]
[1773219358998,1.329279,85.419,85.4,3.37329543]
[1773219359208,1.329279,85.419,85.4,4.02932172]
[1773219359398,11.70635744,85.424,85.402,0.65602629]
[1773219359802,1.329279,85.425,85.402,0.65602629]
[1773219360207,13.03558274,85.425,85.402,0.65602629]
[1773219360414,1.329279,85.424,85.402,0.65602629]
[1773219360620,0.2,85.43,85.402,0.65602629]
[1773219360828,1.529279,85.43,85.402,0.65602629]
[1773219361626,1.529279,85.43,85.411,0.65572973]
[1773219362524,1.329279,85.419,85.39,3.37329543]
[1773219363806,3.37329543,85.42,85.39,3.37329543]
[1773219363807,1.329279,85.417,85.39,3.37329543]
[1773219364005,1.329279,85.417,85.381,0.65554269]
[1773219364711,1.329279,85.429,85.401,0.6554506]
[1773219371007,1.329279,85.429,85.402,11.70932765]
[1773219371322,1.329279,85.427,85.393,11.71056175]
[1773219371529,1.329279,85.419,85.393,11.71056175]
[1773219371823,1.329279,85.409,85.386,0.65479844]
[1773219372127,1.329279,85.409,85.385,11.71165895]
[1773219372315,1.329279,85.399,85.371,11.71357955]
[1773219373103,1.329279,85.399,85.372,0.65471607]
[1773219373825,29.26516225,85.426,85.372,0.65471607]
[1773219374027,29.26516225,85.426,85.363,29.28663292]
[1773219374028,3.37329543,85.44,85.4,1.30991804]
[1773219374209,1.329279,85.429,85.4,3.37329543]
[1773219375931,1.329279,85.429,85.401,11.70946476]
[1773219376208,1.329279,85.429,85.402,0.67599336]
[1773219377915,1.329279,85.429,85.403,11.70919054]
[1773219378714,1.329279,85.429,85.404,0.67856785]
[1773219380418,1.329279,85.429,85.405,11.70891633]
[1773219382930,1.329279,85.429,85.406,0.68593838]
[1773219383338,1.329279,85.429,85.411,0.68593838]
[1773219383533,1.33504659,85.436,85.411,0.68593838]
[1773219384562,11.70391406,85.442,85.411,0.68593838]
[1773219384563,1.53504659,85.43,85.411,0.68593838]
[1773219385048,1.53504659,85.43,85.412,11.70795672]
[1773219385248,1.53504659,85.43,85.412,12.39624046]
[1773219386544,5.80930514,85.45,85.379,46.84943569]
[1773219386545,1.33504659,85.443,85.421,0.68943796]
[1773219386735,1.33504659,85.449,85.421,0.68943796]
[1773219389054,0.2,85.45,85.4,3.36930514]
[1773219389055,1.33504659,85.429,85.4,3.36930514]
[1773219389355,1.33504659,85.419,85.384,0.69282465]
[1773219389730,1.33504659,85.419,85.382,40.99224659]
[1773219389731,1.33504659,85.419,85.39,3.36930514]
[1773219390132,1.33504659,85.419,85.391,0.69392783]
[1773219390452,1.33504659,85.419,85.401,0.69392783]
[1773219391841,1.33504659,85.419,85.402,11.70932765]
[1773219394342,1.33504659,85.429,85.405,0.69816855]
[1773219396945,1.33504659,85.429,85.406,11.70877924]
[1773219398160,11.70576391,85.428,85.406,11.70877924]
[1773219398363,1.33504659,85.427,85.406,11.70877924]
[1773219400967,1.33504659,85.427,85.401,11.70946476]
[1773219403667,2.24,85.446,85.391,11.71083603]
[1773219403668,1.42765571,85.419,85.391,11.71083603]
[1773219406065,1.42765571,85.417,85.386,12.42234055]
[1773219407375,1.42765571,85.417,85.387,0.71172044]
[1773219407573,1.42765571,85.417,85.391,0.71172044]
[1773219407974,1.42765571,85.429,85.401,0.71259359]
[1773219409382,1.42765571,85.427,85.402,11.70932765]
[1773219410480,1.30353813,85.425,85.402,11.70932765]
[1773219412477,1.30353813,85.425,85.398,11.70986319]
[1773219412682,3.36930514,85.43,85.391,12.4286215]
[1773219412683,1.30353813,85.423,85.391,12.4286215]
[1773219413179,1.30353813,85.423,85.391,11.71083603]
[1773219413480,1.30353813,85.423,85.392,0.71778547]
[1773219413669,1.30353813,85.409,85.376,11.71289355]
[1773219414677,1.30353813,85.399,85.376,11.71289355]
[1773219415565,1.30353813,85.399,85.36,3.36930514]
[1773219415880,1.30353813,85.397,85.362,0.72021696]
[1773219416886,1.30353813,85.389,85.363,12.43569561]
[1773219417070,1.30353813,85.389,85.364,0.7210183]
[1773219418584,1.30353813,85.389,85.366,0.72180356]
[1773219420781,1.30353813,85.389,85.367,11.71412841]
[1773219421187,1.30353813,85.379,85.356,11.71563803]
[1773219422087,1.30353813,85.379,85.357,0.7248682]
[1773219424289,1.30353813,85.379,85.351,11.71632435]
[1773219424475,1.30353813,85.369,85.351,11.71632435]
[1773219425373,1.30353813,85.369,85.347,11.71687346]
[1773219426473,1.30353813,85.384,85.351,0.72781905]
[1773219427893,4.67284327,85.38,85.353,0.72924155]
[1773219428093,1.30353813,85.379,85.353,0.72924155]
[1773219431781,1.30353813,85.379,85.35,3.36930514]
[1773219431782,1.30353813,85.379,85.355,0.73197895]
[1773219433506,1.30353813,85.377,85.344,0.73264573]
[1773219433682,1.30353813,85.377,85.342,0.73264573]
[1773219434203,1.30353813,85.377,85.341,11.71769723]
[1773219434204,1.30353813,85.375,85.343,12.45027859]
[1773219434571,1.30353813,85.369,85.343,11.71742263]
[1773219434795,1.30353813,85.369,85.343,12.45049015]
[1773219435094,1.30353813,85.369,85.343,11.71742263]
[1773219435479,1.30353813,85.369,85.342,0.73306752]
[1773219437105,1.30353813,85.367,85.337,0.73347534]
[1773219437475,1.30353813,85.367,85.34,3.36930514]
[1773219437692,1.30353813,85.367,85.341,0.73347534]
[1773219440400,1.34270057,85.365,85.333,0.73428728]
[1773219440700,1.34270057,85.365,85.332,41.01626587]
[1773219440701,1.34270057,85.365,85.341,0.73428728]
[1773219442706,1.34270057,85.365,85.342,11.71755993]
[1773219444196,1.34270057,85.365,85.344,11.71728533]
[1773219445396,1.34270057,85.372,85.345,0.7352318]
[1773219445698,1.34270057,85.372,85.344,11.71728533]
[1773219445699,3.37354317,85.39,85.36,3.37354317]
[1773219445906,3.37354317,85.39,85.357,1.3446655]
[1773219446597,3.37354317,85.39,85.358,11.71536352]
[1773219446598,11.71111033,85.389,85.358,11.71536352]
[1773219446785,11.71111033,85.389,85.359,1.3446655]
[1773219447601,1.34270057,85.388,85.359,1.3446655]
[1773219449305,1.34270057,85.388,85.36,11.71508903]
[1773219449496,1.34270057,85.387,85.361,1.3446655]
[1773219452414,1.34270057,85.387,85.363,1.3446655]
[1773219457508,1.34270057,85.404,85.371,1.3446655]
[1773219458107,1.43947577,85.399,85.371,1.3446655]
[1773219458620,11.708235,85.41,85.365,1.33316091]
[1773219458621,1.43947577,85.389,85.365,1.33316091]
[1773219459721,1.43947577,85.389,85.367,1.33316091]
[1773219460119,1.43947577,85.419,85.381,1.33316091]
[1773219460499,3.37354317,85.43,85.391,1.33316091]
[1773219460800,31.49977222,85.442,85.366,87.85699224]
[1773219460801,1.43947577,85.409,85.38,3.37354317]
[1773219461008,11.70530359,85.432,85.366,40.99992971]
[1773219461009,1.43947577,85.399,85.366,11.71426563]
[1773219461218,1.43947577,85.399,85.367,1.33316091]
[1773219461408,3.37354317,85.42,85.391,1.33316091]
[1773219461609,16.20499127,85.445,85.349,49.26593266]
[1773219461610,11.38021558,85.445,85.383,1.33316091]
[1773219461817,3.37354317,85.43,85.401,1.33316091]
[1773219462023,11.7016539,85.459,85.411,1.33316091]
[1773219462324,0.1,85.47,85.433,1.33316091]
[1773219462325,3.47354317,85.47,85.433,1.33316091]
[1773219462517,0.1,85.47,85.441,1.33316091]
[1773219463004,3.47354317,85.47,85.441,1.33316091]
[1773219463405,1.43947577,85.469,85.441,1.33316091]
[1773219463733,1.43947577,85.469,85.44,3.37354317]
[1773219463734,1e-08,85.5,85.462,1.33316091]
[1773219463910,1e-08,85.5,85.445,3.69383402]
[1773219463911,1e-08,85.5,85.49,3.37354317]
[1773219464105,0.1,85.52,85.492,1.33316091]
[1773219464619,0.1,85.52,85.442,239.92884058]
[1773219464620,1.43947577,85.518,85.484,1.33316091]
[1773219465004,1.43947577,85.509,85.471,1.33316091]
[1773219465208,1.43947577,85.509,85.48,4.70670408]
[1773219465409,1.43947577,85.509,85.48,1.33316091]
[1773219465609,1.43947577,85.507,85.48,1.33316091]
[1773219465823,11.69481218,85.508,85.467,11.70035483]
[1773219465824,1.43947577,85.499,85.467,11.70035483]
[1773219466021,1.43947577,85.508,85.471,1.33316091]
[1773219466219,1.43947577,85.499,85.471,1.33316091]
[1773219466424,1.43947577,85.506,85.471,1.33316091]
[1773219466609,3.37354317,85.5,85.471,1.33316091]
[1773219466931,0.1,85.52,85.491,1.33316091]
[1773219467231,0.1,85.52,85.501,1.33316091]
[1773219467521,0.1,85.53,85.502,1.33316091]
[1773219467729,11.68784113,85.559,85.521,1.33316091]
[1773219467906,3.37354317,85.55,85.521,1.33316091]
[1773219468511,3.37354317,85.54,85.512,1.33316091]
[1773219468744,3.37354317,85.52,85.496,1.33316091]
[1773219469106,1.08270001,85.524,85.496,1.33316091]
[1773219469309,3.37354317,85.54,85.511,1.33316091]
[1773219469522,40.90744397,85.559,85.521,1.33316091]
[1773219469523,1.08270001,85.559,85.521,1.33316091]
[1773219469748,4.82477569,85.585,85.52,3.37354317]
[1773219469749,1.08581871,85.587,85.551,1.41220852]
[1773219469912,3.37354317,85.58,85.551,1.41220852]
[1773219470312,1.08889701,85.579,85.551,1.41220852]
[1773219471025,0.5,85.6,85.571,1.41220852]
[1773219471418,1.09196527,85.595,85.56,3.37354317]
[1773219471612,3.47354317,85.59,85.562,1.41220852]
[1773219472227,1.0949499,85.589,85.553,1.41220852]
[1773219472640,3.37354317,85.57,85.543,1.41220852]
[1773219472950,3.37354317,85.58,85.544,1.41220852]
[1773219473146,3.37354317,85.57,85.544,1.41220852]
[1773219473341,0.1,85.59,85.485,1.16979587]
[1773219473342,3.37354317,85.56,85.535,1.41220852]
[1773219474152,0.1,85.59,85.52,3.37354317]
[1773219474153,1.10088309,85.559,85.521,1.41220852]
[1773219474333,3.37354317,85.55,85.522,13.10510625]
[1773219474534,1.10088309,85.549,85.515,11.69373475]
[1773219475044,3.37354317,85.54,85.516,1.41220852]
[1773219475550,3.37354317,85.56,85.505,1.41220852]
[1773219475551,9.00638503,85.53,85.505,1.41220852]
[1773219475756,1.10379207,85.539,85.507,1.41220852]
[1773219475954,9.00638503,85.54,85.511,1.41220852]
[1773219476285,9.00638503,85.53,85.511,1.41220852]
[1773219476433,11.69045425,85.54,85.511,1.41220852]
[1773219476434,9.00638503,85.54,85.511,1.41220852]
[1773219476848,9.00638503,85.55,85.511,1.41220852]
[1773219477441,9.00638503,85.54,85.511,1.41220852]
[1773219477644,9.00638503,85.55,85.511,1.41220852]
[1773219478048,9.00638503,85.55,85.51,9.00638503]
[1773219478049,1.11231123,85.549,85.513,1.41220852]
[1773219478336,9.00638503,85.54,85.513,1.41220852]
[1773219478561,11.68579241,85.574,85.513,1.41220852]
[1773219478852,9.00638503,85.57,85.531,1.41220852]
[1773219479049,9.00638503,85.57,85.541,1.41220852]
[1773219479653,20.69138041,85.58,85.541,1.41220852]
[1773219479860,9.00638503,85.57,85.541,1.41220852]
[1773219480252,11.68510966,85.579,85.542,11.69016389]
[1773219480549,11.68510966,85.579,85.543,1.41220852]
[1773219481466,11.68510966,85.579,85.542,11.69016389]
[1773219481467,11.68510966,85.579,85.551,1.41220852]
[1773219482359,9.00638503,85.57,85.541,13.10250907]
[1773219482538,9.00638503,85.57,85.542,1.41220852]
[1773219483342,1.12587183,85.559,85.52,9.00638503]
[1773219483645,9.00638503,85.55,85.521,1.41220852]
[1773219483843,9.00638503,85.55,85.522,1.41220852]
[1773219484455,9.00638503,85.55,85.511,29.23594475]
[1773219484456,9.00638503,85.55,85.524,1.41220852]
[1773219484856,11.68793043,85.559,85.524,1.41220852]
[1773219485050,9.00638503,85.55,85.524,1.41220852]
[1773219485564,20.69413577,85.56,85.524,1.41220852]
[1773219486057,9.00638503,85.55,85.524,1.41220852]
[1773219486965,9.00638503,85.55,85.511,29.23598741]
[1773219486966,2.3,85.577,85.541,1.41220852]
[1773219487174,11.6855193,85.576,85.541,1.41220852]
[1773219487545,11.6855193,85.576,85.52,1.41220852]
[1773219487546,9.00638503,85.55,85.52,1.41220852]
[1773219487762,9.00638503,85.55,85.521,1.41220852]
[1773219488167,1.13610748,85.559,85.521,1.41220852]
[1773219488368,9.00638503,85.56,85.521,1.41220852]
[1773219488765,11.68784113,85.559,85.522,11.69289773]
[1773219488961,11.68784113,85.559,85.523,1.41220852]
[1773219489567,9.00638503,85.57,85.531,1.41220852]
[1773219489768,11.68647524,85.569,85.541,1.41220852]
[1773219490960,9.00638503,85.57,85.542,11.69016389]
[1773219491167,9.00638503,85.57,85.543,1.41220852]
[1773219491557,20.69273631,85.57,85.543,1.41220852]
[1773219492169,21.84101635,85.57,85.543,1.41220852]
[1773219492558,20.69273631,85.57,85.543,1.41220852]
[1773219493155,11.68538275,85.577,85.545,1.41220852]
[1773219493776,12.83601697,85.577,85.545,1.41220852]
[1773219493966,9.00638503,85.57,85.545,1.41220852]
[1773219494156,9.00638503,85.56,85.537,1.41220852]
[1773219494572,9.00638503,85.56,85.522,29.23219241]
[1773219494573,9.00638503,85.56,85.539,1.41220852]
[1773219494763,1.15280986,85.569,85.539,1.41220852]
[1773219496290,11.68661181,85.568,85.539,1.41220852]
[1773219496579,1.15711596,85.567,85.54,1.41220852]
[1773219496781,11.68661181,85.568,85.54,1.41220852]
[1773219497384,9.00638503,85.57,85.541,1.41220852]
[1773219497579,3.35964211,85.57,85.541,1.41220852]
[1773219497784,11.68577882,85.575,85.541,1.41220852]
[1773219497978,29.30904541,85.59,85.551,1.41220852]
[1773219497979,1.1612725,85.589,85.551,1.41220852]
[1773219498287,11.68510966,85.579,85.552,13.10100597]
[1773219498883,1.1612725,85.582,85.553,1.41220852]
[1773219499070,11.68483658,85.581,85.553,1.41220852]
[1773219499270,3.35964211,85.58,85.553,1.41220852]
[1773219499481,4.52295267,85.57,85.538,1.41220852]
[1773219499669,4.52295267,85.57,85.541,1.37743998]
[1773219499870,4.52295267,85.57,85.54,3.35964211]
[1773219499871,1.16735395,85.559,85.53,3.35964211]
[1773219500075,1.16735395,85.559,85.526,1.37743998]
[1773219500277,1.16735395,85.559,85.528,1.37743998]
[1773219500482,12.85533169,85.558,85.528,1.37743998]
[1773219500884,1.16934618,85.549,85.513,1.37743998]
[1773219501288,4.52898829,85.54,85.513,1.37743998]
[1773219501475,3.35964211,85.54,85.513,1.37743998]
[1773219501681,1.16934618,85.547,85.513,1.37743998]
[1773219501985,9.00396849,85.55,85.513,1.37743998]
[1773219502687,9.00396849,85.55,85.484,46.79188854]
[1773219502688,11.68811435,85.557,85.531,1.37743998]
[1773219503970,1.17517747,85.556,85.531,1.37743998]
[1773219504172,10.17914596,85.55,85.521,1.37743998]
[1773219504372,11.68811435,85.557,85.521,1.37743998]
[1773219504585,2.32,85.575,85.541,1.37743998]
[1773219504586,11.68592487,85.574,85.541,1.37743998]
[1773219505879,9.00396849,85.56,85.532,1.37743998]
[1773219506391,10.18291637,85.57,85.532,1.37743998]
[1773219506597,11.68647524,85.569,85.534,1.37743998]
[1773219507294,1.18077399,85.568,85.534,1.37743998]
[1773219507496,11.68647524,85.569,85.534,1.37743998]
[1773219507808,11.68647524,85.569,85.541,1.37743998]
[1773219507809,1.18260901,85.568,85.541,1.37743998]
[1773219507975,1.18260901,85.568,85.531,1.37743998]
[1773219507976,9.00141016,85.56,85.531,1.37743998]
[1773219508294,9.00141016,85.56,85.521,1.37743998]
[1773219508295,1.18260901,85.559,85.521,1.37743998]
[1773219509896,1.18619611,85.557,85.523,1.37743998]
[1773219510081,9.00141016,85.55,85.523,1.37743998]
[1773219510478,1.18619611,85.549,85.513,1.37743998]
[1773219510999,40.9079221,85.558,85.482,104.0]
[1773219511000,1.18797144,85.539,85.503,1.37743998]
[1773219511200,1.18797144,85.529,85.491,1.37743998]
[1773219511397,1.18797144,85.529,85.494,1.37743998]
[1773219511580,9.00141016,85.52,85.494,1.37743998]
[1773219512598,1.18973159,85.518,85.485,13.07539868]
[1773219512797,9.00141016,85.51,85.486,1.37743998]
[1773219513107,1.18973159,85.518,85.486,1.37743998]
[1773219513603,11.69330791,85.519,85.486,1.37743998]
[1773219514388,9.00141016,85.51,85.486,1.37743998]
[1773219514605,9.00141016,85.51,85.485,11.6979587]
[1773219514606,11.69389667,85.515,85.488,1.37743998]
[1773219516604,9.00141016,85.5,85.479,1.37743998]
[1773219516906,1.196558,85.509,85.479,1.37743998]
[1773219517205,9.00141016,85.51,85.481,1.37743998]
[1773219517400,11.69330791,85.519,85.481,1.37743998]
[1773219517599,9.00141016,85.51,85.481,1.37743998]
[1773219519293,9.00141016,85.51,85.478,40.94618256]
[1773219519294,11.69467541,85.509,85.482,11.69836924]
[1773219519493,11.69467541,85.509,85.483,1.52233149]
[1773219520712,1.20468805,85.499,85.461,1.52233149]
[1773219521008,1.20626028,85.508,85.471,1.52233149]
[1773219521214,12.90093569,85.509,85.472,11.69973792]
[1773219521414,12.90093569,85.509,85.473,1.52233149]
[1773219521800,1.20778766,85.508,85.473,1.52233149]
[1773219522294,3.36467377,85.5,85.473,1.52233149]
[1773219523512,11.69604322,85.499,85.475,1.52233149]
[1773219523902,1.21078997,85.498,85.468,1.52233149]
[1773219524107,1.21078997,85.498,85.469,11.70014859]
[1773219524308,1.21078997,85.498,85.469,13.22248008]
[1773219524503,1.21078997,85.498,85.469,11.70014859]
[1773219524813,1.21078997,85.498,85.47,1.52233149]
[1773219525918,3.36467377,85.5,85.472,1.52233149]
[1773219526119,3.36467377,85.51,85.472,1.52233149]
[1773219526515,11.69412837,85.513,85.481,1.52233149]
[1773219527617,3.36467377,85.51,85.481,1.52233149]
[1773219528615,4.58135936,85.52,85.483,1.52233149]
[1773219529313,3.36467377,85.51,85.483,1.52233149]
[1773219529704,1.21955593,85.509,85.483,1.52233149]
[1773219530917,11.69481218,85.508,85.483,1.52233149]
[1773219532520,11.69481218,85.508,85.484,11.69809555]
[1773219533524,1.22507824,85.507,85.483,1.52233149]
[1773219535704,1.22507824,85.507,85.47,3.36467377]
[1773219535911,1.22902618,85.499,85.467,1.3928341]
[1773219537129,3.36467377,85.49,85.468,11.70028548]
[1773219537331,11.69618002,85.498,85.469,1.3928341]
[1773219539229,11.69618002,85.498,85.471,1.3928341]
[1773219540512,4.596262,85.5,85.471,1.3928341]
[1773219540830,11.69501172,85.507,85.471,1.3928341]
[1773219541129,3.36467377,85.5,85.471,1.3928341]
[1773219541826,11.69604322,85.499,85.473,1.3928341]
[1773219542012,11.69604322,85.499,85.472,11.69973792]
[1773219542013,1.23650006,85.498,85.472,11.69973792]
[1773219542208,3.36467377,85.49,85.472,11.69973792]
[1773219542632,1.23650006,85.498,85.472,11.69973792]
[1773219542835,1.23650006,85.498,85.471,1.3928341]
[1773219543021,1.23650006,85.498,85.472,11.69973792]
[1773219543628,1.23650006,85.498,85.472,13.09257202]
[1773219544528,11.69631682,85.497,85.473,1.3928341]
[1773219544736,3.36467377,85.5,85.473,1.3928341]
[1773219544921,11.69604322,85.499,85.473,1.3928341]
[1773219546137,12.93728656,85.499,85.474,11.69946416]
[1773219546326,12.93728656,85.499,85.474,13.09229826]
[1773219546637,1.24124334,85.498,85.474,13.09229826]
[1773219547131,1.24124334,85.498,85.475,1.3928341]
[1773219547628,11.69604322,85.499,85.477,1.3928341]
[1773219547834,12.93958099,85.499,85.477,1.3928341]
[1773219548830,1.24466617,85.496,85.472,13.09252191]
[1773219549035,1.24466617,85.496,85.473,1.3928341]
[1773219550033,3.36467377,85.5,85.473,1.3928341]
[1773219550034,11.69604322,85.499,85.473,1.3928341]
[1773219550234,1.24575566,85.502,85.473,1.3928341]
[1773219550440,3.36467377,85.52,85.481,1.3928341]
[1773219550629,4.61150132,85.52,85.481,1.3928341]
[1773219551037,11.69330791,85.519,85.483,1.3928341]
[1773219551615,3.36467377,85.53,85.491,1.3928341]
[1773219552140,3.36467377,85.52,85.491,1.3928341]
[1773219553242,3.36467377,85.52,85.492,11.69700088]
[1773219553435,3.36467377,85.52,85.493,1.3928341]
[1773219555527,3.36467377,85.52,85.495,1.3928341]